fUST/lending_fUST_20251028
["ID","MTS","AMOUNT","RATE_DAILY","PERIOD"]
[392555096,1761657050054,-500.0,0.00021917,2]
[392555097,1761657050064,-563.13,0.00021917,2]
[392555098,1761657050075,-964.6,0.00021917,2]
[392555099,1761657050085,-500.0,0.00021917,2]
[392555100,1761657050097,-744.61,0.00021917,2]
[392555101,1761657050107,-879.43,0.00021917,2]
[392555102,1761657050117,-500.0,0.00021917,2]
[392555103,1761657050128,-1358.64,0.00021917,2]
[392555104,1761657050138,-580.0,0.00021917,2]
[392555105,1761657050149,-2220.12,0.00021917,2]
[392555106,1761657050159,-513.68,0.00021917,2]
[392555107,1761657050169,-586.19,0.00021917,2]
[392555108,1761657050179,-500.0,0.00021917,2]
[392555109,1761657050189,-500.0,0.00021917,2]
[392555110,1761657050199,-764.13,0.00021917,2]
[392555111,1761657050209,-540.0,0.00021917,2]
[392555112,1761657050219,-500.0,0.00021917,2]
[392555113,1761657050230,-1030.09,0.00021917,2]
[392555114,1761657050240,-851.41,0.00021917,2]
[392555115,1761657050250,-500.0,0.00021917,2]
[392555116,1761657050260,-1542.61,0.00021917,2]
[392555117,1761657050270,-1850.58,0.00021917,2]
[392555118,1761657050280,-500.0,0.00021917,2]
[392555119,1761657050290,-500.0,0.00021917,2]
[392555120,1761657050299,-1102.07,0.00021917,2]
[392555121,1761657050309,-1177.28,0.00021917,2]
[392555122,1761657050319,-1804.48,0.00021917,2]
[392555123,1761657050329,-500.0,0.00021917,2]
[392555124,1761657050339,-500.0,0.00021917,2]
[392555125,1761657050348,-982.96,0.00021917,2]
[392555126,1761657050358,-500.0,0.00021917,2]
[392555127,1761657050368,-1089.89,0.00021917,2]
[392555128,1761657050378,-1582.41,0.00021917,2]
[392555129,1761657050388,-500.0,0.00021917,2]
[392555130,1761657050398,-500.0,0.00021917,2]
[392555131,1761657050410,-500.0,0.00021917,2]
[392555132,1761657050421,-500.0,0.00021917,2]
[392555133,1761657050431,-1272.78,0.00021917,2]
[392555134,1761657050440,-500.0,0.00021917,2]
[392555135,1761657050451,-500.0,0.00021917,2]
[392555136,1761657050461,-500.0,0.00021917,2]
[392555137,1761657050471,-500.0,0.00021917,2]
[392555138,1761657050480,-960.66,0.00021917,2]
[392555139,1761657050491,-2132.59,0.00021917,2]
[392555140,1761657050501,-500.0,0.00021917,2]
[392555141,1761657050511,-577.93,0.00021917,2]
[392555142,1761657050520,-1165.19,0.00021917,2]
[392555143,1761657050530,-1071.55,0.00021917,2]
[392555144,1761657050539,-3281.56,0.00021917,2]
[392555145,1761657050549,-500.0,0.00021917,2]
[392555146,1761657050558,-500.0,0.00021917,2]
[392555147,1761657050568,-500.0,0.00021917,2]
[392555148,1761657050578,-500.0,0.00021917,2]
[392555149,1761657050587,-500.0,0.00021917,2]
[392555150,1761657050597,-500.0,0.00021917,2]
[392555151,1761657050607,-1811.0,0.00021917,2]
[392555152,1761657050616,-500.0,0.00021917,2]
[392555153,1761657050626,-500.0,0.00021917,2]
[392555154,1761657050637,-500.0,0.00021917,2]
[392555155,1761657050646,-500.0,0.00021917,2]
[392555156,1761657050656,-629.87,0.00021917,2]
[392555157,1761657050666,-500.0,0.00021917,2]
[392555158,1761657050676,-500.0,0.00021917,2]
[392555159,1761657050685,-500.0,0.00021917,2]
[392555160,1761657050695,-500.0,0.00021917,2]
[392555161,1761657050704,-500.0,0.00021917,2]
[392555162,1761657050714,-996.29,0.00021917,2]
[392555163,1761657050723,-500.0,0.00021917,2]
[392555164,1761657050733,-500.0,0.00021917,2]
[392555165,1761657050743,-500.0,0.00021917,2]
[392555166,1761657050752,-500.0,0.00021917,2]
[392555167,1761657050762,-1447.31,0.00021917,2]
[392555168,1761657050772,-500.0,0.00021917,2]
[392555169,1761657050782,-1970.51,0.00021917,2]
[392555170,1761657050791,-500.0,0.00021917,2]
[392555171,1761657050801,-151.0,0.00021917,2]
[392555172,1761657050811,-151.0,0.00021917,2]
[392555173,1761657050821,-151.0,0.00021917,2]
[392555174,1761657050831,-151.0,0.00021917,2]
[392555175,1761657050841,-500.0,0.00021917,2]
[392555176,1761657050851,-151.0,0.00021917,2]
[392555177,1761657050862,-151.0,0.00021917,2]
[392555178,1761657050872,-151.0,0.00021917,2]
[392555179,1761657050882,-151.0,0.00021917,2]
[392555180,1761657050892,-882.48,0.00021917,2]
[392555181,1761657050902,-532.16,0.00021917,2]
[392555182,1761657050913,-2380.21,0.00021917,2]
[392555183,1761657050923,-500.0,0.00021917,2]
[392555184,1761657050934,-1000.0,0.00021917,2]
[392555185,1761657050944,-1295.56,0.00021917,2]
[392555186,1761657050954,-662.12,0.00021917,2]
[392555187,1761657050964,-500.0,0.00021917,2]
[392555188,1761657050974,-1746.5,0.00021917,2]
[392555189,1761657050984,-923.48,0.00021917,2]
[392555190,1761657050994,-1196.74,0.00021917,2]
[392555191,1761657051004,-500.0,0.00021917,2]
[392555192,1761657051014,-3993.89,0.00021917,2]
[392555193,1761657051024,-839.65,0.00021917,2]
[392555194,1761657051034,-519.67,0.00021917,2]
[392555195,1761657051044,-1235.47,0.00021917,2]
[392555196,1761657051054,-500.0,0.00021917,2]
[392555197,1761657051064,-500.0,0.00021917,2]
[392555198,1761657051074,-151.0,0.00021917,2]
[392555199,1761657051084,-500.0,0.00021917,2]
[392555200,1761657051094,-500.0,0.00021917,2]
[392555201,1761657051104,-2593.23,0.00021917,2]
[392555202,1761657051114,-772.09,0.00021917,2]
[392555203,1761657051124,-500.0,0.00021917,2]
[392555204,1761657051134,-845.73,0.00021917,2]
[392555205,1761657051144,-563.39,0.00021917,2]
[392555206,1761657051154,-16199.07,0.00021917,2]
[392555207,1761657051164,-1727.27,0.00021917,2]
[392555208,1761657051174,-500.0,0.00021917,2]
[392555209,1761657051184,-500.0,0.00021917,2]
[392555210,1761657051194,-500.0,0.00021917,2]
[392555211,1761657051204,-655.09,0.00021917,2]
[392555212,1761657051213,-500.0,0.00021917,2]
[392555213,1761657051223,-1646.43,0.00021917,2]
[392555214,1761657051233,-481.20507263,0.00021917,2]
[392555215,1761657051244,-840.78,0.00021917,2]
[392555216,1761657051253,-2064.52,0.00021917,2]
[392555217,1761657051263,-500.0,0.00021917,2]
[392555218,1761657051273,-500.0,0.00021917,2]
[392555219,1761657051283,-500.0,0.00021917,2]
[392555220,1761657051293,-500.0,0.00021917,2]
[392555221,1761657051303,-500.0,0.00021918,2]
[392555222,1761657051313,-516.86822856,0.00021918,2]
[392555223,1761657051323,-500.0,0.00021973,2]
[392555224,1761657051332,-500.0,0.00021973,2]
[392555225,1761657051342,-500.0,0.00021973,2]
[392555226,1761657051351,-500.0,0.00021973,2]
[392555227,1761657051361,-500.13355916,0.00021973,2]
[392555228,1761657051370,-500.0,0.00021973,2]
[392555229,1761657051380,-500.0,0.00021973,2]
[392555230,1761657051391,-488.26708621,0.00021973,2]
[392555231,1761657051400,-500.0,0.00021973,2]
[392555232,1761657051412,-500.0,0.00021973,2]
[392555233,1761657051425,-500.0,0.00021973,2]
[392555234,1761657051434,-500.0,0.00021973,2]
[392555235,1761657051444,-500.0,0.00021973,2]
[392555236,1761657051454,-500.0,0.00021973,2]
[392555237,1761657051466,-500.0,0.00021973,2]
[392555238,1761657051475,-500.0,0.00021973,2]
[392555239,1761657051485,-500.0,0.00021973,2]
[392555240,1761657051495,-500.0,0.00021973,2]
[392555241,1761657051504,-500.0,0.00021973,2]
[392555242,1761657051514,-500.0,0.00021973,2]
[392555243,1761657051524,-500.0,0.00021973,2]
[392555244,1761657051534,-500.0,0.00021973,2]
[392555245,1761657051544,-500.0,0.00021973,2]
[392555246,1761657051554,-500.0,0.00021973,2]
[392555247,1761657051564,-44014.18,0.00022,7]
[392555248,1761657051574,-60080.55204283,0.00022,2]
[392555249,1761657051588,-301.354407,0.00022,10]
[392555250,1761657051598,-2000.0,0.000221,2]
[392555251,1761657051608,-500.0,0.00022191,2]
[392555252,1761657051618,-500.0,0.00022191,2]
[392555253,1761657051627,-500.0,0.00022191,2]
[392555254,1761657051637,-500.0,0.00022191,2]
[392555255,1761657051647,-500.0,0.00022191,2]
[392555256,1761657051657,-500.0,0.00022191,2]
[392555257,1761657051667,-710.68,0.00022191,2]
[392555258,1761657051676,-500.0,0.00022191,2]
[392555259,1761657051686,-602.64,0.00022191,2]
[392555260,1761657051697,-533.273604,0.00022191,2]
[392555261,1761657051707,-581.8,0.00022191,2]
[392555262,1761657051718,-500.0,0.00022191,2]
[392555263,1761657051729,-500.0,0.00022191,2]
[392555264,1761657051739,-500.0,0.00022191,2]
[392555265,1761657051750,-750.38,0.00022191,2]
[392555266,1761657051760,-500.0,0.00022191,2]
[392555267,1761657051770,-500.0,0.00022191,2]
[392555268,1761657051779,-500.0,0.00022191,2]
[392555269,1761657051789,-500.0,0.00022191,2]
[392555270,1761657051799,-500.0,0.00022191,2]
[392555271,1761657051809,-500.0,0.00022191,2]
[392555272,1761657051819,-500.0,0.00022191,2]
[392555273,1761657051829,-603.92,0.00022191,2]
[392555274,1761657051838,-500.0,0.00022191,2]
[392555275,1761657051848,-507.81,0.00022191,2]
[392555276,1761657051858,-500.0,0.00022191,2]
[392555277,1761657051867,-500.0,0.00022191,2]
[392555278,1761657051877,-500.0,0.00022191,2]
[392555279,1761657051889,-500.0,0.00022191,2]
[392555280,1761657051899,-1000.0,0.00022191,2]
[392555281,1761657051909,-500.0,0.00022191,2]
[392555282,1761657051918,-500.0,0.00022191,2]
[392555283,1761657051928,-500.0,0.00022191,2]
[392555284,1761657051938,-500.0,0.00022191,2]
[392555285,1761657051948,-500.0,0.00022191,2]
[392555286,1761657051958,-500.0,0.00022191,2]
[392555287,1761657051968,-500.0,0.00022191,2]
[392555288,1761657051978,-502.2,0.00022191,2]
[392555289,1761657051988,-500.0,0.00022191,2]
[392555290,1761657051998,-500.0,0.00022191,2]
[392555291,1761657052008,-500.0,0.00022191,2]
[392555292,1761657052018,-500.0,0.00022191,2]
[392555293,1761657052028,-500.0,0.00022191,2]
[392555294,1761657052039,-500.0,0.00022191,2]
[392555295,1761657052050,-962.4,0.00022191,2]
[392555296,1761657052060,-500.0,0.00022191,2]
[392555297,1761657052071,-500.58,0.00022191,2]
[392555298,1761657052082,-573.30210281,0.00022191,2]
[392555299,1761657052303,-751.7,0.00022191,2]
[392555300,1761657052357,-644.05,0.00022191,2]
[392555301,1761657052367,-500.0,0.00022191,2]
[392555302,1761657052376,-500.0,0.00022191,2]
[392555303,1761657052385,-559.36,0.00022191,2]
[392555304,1761657052394,-1761.71,0.00022191,2]
[392555305,1761657052404,-500.0,0.00022191,2]
[392555306,1761657052417,-1425.95,0.00022191,2]
[392555307,1761657052426,-500.0,0.00022191,2]
[392555308,1761657052435,-500.0,0.00022191,2]
[392555309,1761657052445,-500.0,0.00022191,2]
[392555310,1761657052454,-500.0,0.00022191,2]
[392555311,1761657052464,-500.0,0.00022191,2]
[392555312,1761657052473,-507.16,0.00022191,2]
[392555313,1761657052487,-4394.52,0.00022191,2]
[392555314,1761657052496,-975.14,0.00022191,2]
[392555315,1761657052505,-500.0,0.00022191,2]
[392555316,1761657052514,-500.0,0.00022191,2]
[392555317,1761657052523,-1805.74,0.00022191,2]
[392555318,1761657052532,-500.0,0.00022191,2]
[392555319,1761657052542,-500.0,0.00022191,2]
[392555320,1761657052554,-500.0,0.00022191,2]
[392555321,1761657052563,-500.0,0.00022191,2]
[392555322,1761657052573,-1009.14,0.00022191,2]
[392555323,1761657052582,-622.99059303,0.00022191,2]
[392555324,1761657052591,-500.0,0.00022191,2]
[392555325,1761657052600,-500.0,0.00022191,2]
[392555326,1761657052609,-500.0,0.00022191,2]
[392555327,1761657052618,-500.0,0.00022191,2]
[392555328,1761657052628,-500.0,0.00022191,2]
[392555329,1761657052637,-500.0,0.00022191,2]
[392555330,1761657052647,-500.0,0.00022191,2]
[392555331,1761657052657,-563.11,0.00022191,2]
[392555332,1761657052666,-500.0,0.00022191,2]
[392555333,1761657052675,-500.0,0.00022191,2]
[392555334,1761657052684,-648.73,0.00022191,2]
[392555335,1761657052693,-500.0,0.00022191,2]
[392555336,1761657052703,-500.15568784,0.00022191,2]
[392555337,1761657052713,-500.0,0.00022191,2]
[392555338,1761657052722,-500.0,0.00022191,2]
[392555339,1761657052731,-534.12417545,0.00022191,2]
[392555340,1761657052740,-500.0,0.00022191,2]
[392555341,1761657052749,-818.03,0.00022191,2]
[392555342,1761657052759,-500.0,0.00022191,2]
[392555343,1761657052768,-500.0,0.00022191,2]
[392555344,1761657052777,-500.0,0.00022191,2]
[392555345,1761657052787,-500.0,0.00022191,2]
[392555346,1761657052796,-500.0,0.00022191,2]
[392555347,1761657052806,-500.0,0.00022191,2]
[392555348,1761657052815,-500.0,0.00022191,2]
[392555349,1761657052824,-684.92,0.00022191,2]
[392555350,1761657052833,-500.0,0.00022191,2]
[392555351,1761657052842,-500.0,0.00022191,2]
[392555352,1761657052851,-683.56,0.00022191,2]
[392555353,1761657052860,-500.0,0.00022191,2]
[392555354,1761657052870,-500.0,0.00022191,2]
[392555355,1761657052879,-545.46,0.00022191,2]
[392555356,1761657052889,-500.0,0.00022191,2]
[392555357,1761657052898,-730.37,0.00022191,2]
[392555358,1761657052907,-500.0,0.00022191,2]
[392555359,1761657052916,-500.0,0.00022191,2]
[392555360,1761657052926,-868.54,0.00022191,2]
[392555361,1761657052936,-670.25,0.00022191,2]
[392555362,1761657052946,-500.0,0.00022191,2]
[392555363,1761657052956,-500.0,0.00022191,2]
[392555364,1761657052965,-500.0,0.00022191,2]
[392555365,1761657052974,-500.0,0.00022191,2]
[392555366,1761657052984,-829.55,0.00022191,2]
[392555367,1761657052994,-500.0,0.00022191,2]
[392555368,1761657053003,-500.0,0.00022191,2]
[392555369,1761657053014,-500.0,0.00022191,2]
[392555370,1761657053023,-1532.77,0.00022191,2]
[392555371,1761657053033,-500.0,0.00022191,2]
[392555372,1761657053043,-500.0,0.00022191,2]
[392555373,1761657053053,-651.02,0.00022191,2]
[392555374,1761657053063,-500.0,0.00022191,2]
[392555375,1761657053075,-500.0,0.00022191,2]
[392555376,1761657053085,-708.39,0.00022191,2]
[392555377,1761657053094,-500.0,0.00022191,2]
[392555378,1761657053104,-500.0,0.00022191,2]
[392555379,1761657053114,-500.0,0.00022191,2]
[392555380,1761657053123,-500.0,0.00022191,2]
[392555381,1761657053133,-500.0,0.00022191,2]
[392555382,1761657053143,-450.0,0.00022191,2]
[392555383,1761657053153,-500.0,0.00022191,2]
[392555384,1761657053162,-500.0,0.00022191,2]
[392555385,1761657053172,-500.0,0.00022191,2]
[392555386,1761657053182,-500.0,0.00022191,2]
[392555387,1761657053192,-500.0,0.00022191,2]
[392555388,1761657053201,-500.0,0.00022191,2]
[392555389,1761657053210,-500.0,0.00022191,2]
[392555390,1761657053220,-500.0,0.00022191,2]
[392555391,1761657053229,-1030.21,0.00022191,2]
[392555392,1761657053238,-600.99,0.00022191,2]
[392555393,1761657053248,-500.0,0.00022191,2]
[392555394,1761657053257,-742.27,0.00022191,2]
[392555395,1761657053266,-530.45,0.00022191,2]
[392555396,1761657053275,-500.0,0.00022191,2]
[392555397,1761657053285,-504.41,0.00022191,2]
[392555398,1761657053295,-500.0,0.00022191,2]
[392555399,1761657053304,-500.0,0.00022191,2]
[392555400,1761657053313,-794.07,0.00022191,2]
[392555401,1761657053323,-1069.51,0.00022191,2]
[392555402,1761657053331,-500.0,0.00022191,2]
[392555403,1761657053341,-800.14,0.00022191,2]
[392555404,1761657053350,-553.11,0.00022191,2]
[392555405,1761657053359,-465.51737953,0.00022191,2]
[392555406,1761657053369,-500.0,0.00022191,2]
[392555407,1761657053379,-1010.99,0.00022191,2]
[392555408,1761657053389,-664.51,0.00022191,2]
[392555409,1761657053398,-500.0,0.00022191,2]
[392555410,1761657053408,-500.0,0.00022191,2]
[392555411,1761657053421,-1368.36,0.00022191,2]
[392555412,1761657053431,-500.0,0.00022191,2]
[392555413,1761657053440,-500.0,0.00022191,2]
[392555414,1761657053451,-500.0,0.00022191,2]
[392555415,1761657053460,-500.0,0.00022191,2]
[392555416,1761657053469,-500.0,0.00022191,2]
[392555417,1761657053479,-767.33,0.00022191,2]
[392555418,1761657053492,-502.14,0.00022191,2]
[392555419,1761657053502,-500.0,0.00022191,2]
[392555420,1761657053511,-500.0,0.00022191,2]
[392555421,1761657053520,-500.0,0.00022191,2]
[392555422,1761657053530,-500.0,0.00022191,2]
[392555423,1761657053539,-500.0,0.00022191,2]
[392555424,1761657053549,-723.67,0.00022191,2]
[392555425,1761657053558,-1366.29,0.00022191,2]
[392555426,1761657053567,-500.0,0.00022191,2]
[392555427,1761657053576,-500.0,0.00022191,2]
[392555428,1761657053586,-555.4,0.00022191,2]
[392555429,1761657053595,-500.0,0.00022191,2]
[392555430,1761657053604,-558.86,0.00022191,2]
[392555431,1761657053614,-500.0,0.00022191,2]
[392555432,1761657053623,-500.0,0.00022191,2]
[392555433,1761657053632,-861.79,0.00022191,2]
[392555434,1761657053642,-500.0,0.00022191,2]
[392555435,1761657053651,-500.0,0.00022191,2]
[392555436,1761657053661,-500.0,0.00022191,2]
[392555437,1761657053671,-614.45,0.00022191,2]
[392555438,1761657053680,-507.87,0.00022191,2]
[392555439,1761657053689,-500.0,0.00022191,2]
[392555440,1761657053698,-889.12,0.00022191,2]
[392555441,1761657053708,-709.01,0.00022191,2]
[392555442,1761657053718,-500.0,0.00022191,2]
[392555443,1761657053727,-500.0,0.00022191,2]
[392555444,1761657053736,-675.73,0.00022191,2]
[392555445,1761657053745,-500.0,0.00022191,2]
[392555446,1761657053754,-500.0,0.00022191,2]
[392555447,1761657053763,-500.0,0.00022191,2]
[392555448,1761657053773,-500.0,0.00022191,2]
[392555449,1761657053782,-500.0,0.00022191,2]
[392555450,1761657053792,-500.0,0.00022191,2]
[392555451,1761657053801,-500.0,0.00022191,2]
[392555452,1761657053811,-500.0,0.00022191,2]
[392555453,1761657053820,-500.0,0.00022191,2]
[392555454,1761657053829,-500.0,0.00022191,2]
[392555455,1761657053838,-500.0,0.00022191,2]
[392555456,1761657053847,-500.95,0.00022191,2]
[392555457,1761657053857,-500.0,0.00022191,2]
[392555458,1761657053866,-500.0,0.00022191,2]
[392555459,1761657053875,-500.0,0.00022191,2]
[392555460,1761657053884,-500.0,0.00022191,2]
[392555461,1761657053894,-500.0,0.00022191,2]
[392555462,1761657053904,-500.0,0.00022191,2]
[392555463,1761657053913,-500.0,0.00022191,2]
[392555464,1761657053924,-608.46,0.00022191,2]
[392555465,1761657053933,-1087.7,0.00022191,2]
[392555466,1761657053942,-500.0,0.00022191,2]
[392555467,1761657053952,-570.92314285,0.00022191,2]
[392555468,1761657053961,-500.0,0.00022191,2]
[392555469,1761657053971,-1157.83,0.00022191,2]
[392555470,1761657053980,-1469.64,0.00022191,2]
[392555471,1761657053990,-500.0,0.00022191,2]
[392555472,1761657053999,-500.0,0.00022191,2]
[392555473,1761657054009,-500.0,0.00022191,2]
[392555474,1761657054018,-500.0,0.00022191,2]
[392555475,1761657054028,-1532.05,0.00022191,2]
[392555476,1761657054038,-500.0,0.00022191,2]
[392555477,1761657054048,-500.0,0.00022191,2]
[392555478,1761657054057,-656.29,0.00022191,2]
[392555479,1761657054067,-500.0,0.00022191,2]
[392555480,1761657054077,-500.0,0.00022191,2]
[392555481,1761657054087,-500.0,0.00022191,2]
[392555482,1761657054097,-553.31,0.00022191,2]
[392555483,1761657054107,-1201.89,0.00022191,2]
[392555484,1761657054117,-500.0,0.00022191,2]
[392555485,1761657054126,-500.0,0.00022191,2]
[392555486,1761657054136,-500.0,0.00022191,2]
[392555487,1761657054146,-572.32,0.00022191,2]
[392555488,1761657054156,-500.0,0.00022191,2]
[392555489,1761657054165,-500.0,0.00022191,2]
[392555490,1761657054175,-500.0,0.00022191,2]
[392555491,1761657054184,-500.0,0.00022191,2]
[392555492,1761657054194,-500.0,0.00022191,2]
[392555493,1761657054203,-981.12,0.00022191,2]
[392555494,1761657054212,-1310.52,0.00022191,2]
[392555495,1761657054222,-500.0,0.00022191,2]
[392555496,1761657054231,-500.0,0.00022191,2]
[392555497,1761657054240,-500.0,0.00022191,2]
[392555498,1761657054249,-500.0,0.00022191,2]
[392555499,1761657054259,-500.0,0.00022191,2]
[392555500,1761657054268,-903.76,0.00022191,2]
[392555501,1761657054277,-500.0,0.00022191,2]
[392555502,1761657054287,-1165.96,0.00022191,2]
[392555503,1761657054296,-677.51,0.00022191,2]
[392555504,1761657054305,-500.0,0.00022191,2]
[392555505,1761657054315,-500.0,0.00022191,2]
[392555506,1761657054325,-936.87,0.00022191,2]
[392555507,1761657054334,-500.0,0.00022191,2]
[392555508,1761657054344,-500.0,0.00022191,2]
[392555509,1761657054353,-500.0,0.00022191,2]
[392555510,1761657054363,-426.06385406,0.00022191,2]
[392555511,1761657054372,-1402.31,0.00022191,2]
[392555512,1761657054381,-500.0,0.00022191,2]
[392555513,1761657054391,-936.52,0.00022191,2]
[392555514,1761657054401,-534.48,0.00022191,2]
[392555515,1761657054414,-500.0,0.00022191,2]
[392555516,1761657054424,-3148.76,0.00022191,2]
[392555517,1761657054433,-1072.47,0.00022191,2]
[392555518,1761657054442,-1445.36,0.00022191,2]
[392555519,1761657054452,-1417.94,0.00022191,2]
[392555520,1761657054462,-500.0,0.00022191,2]
[392555521,1761657054472,-604.42,0.00022191,2]
[392555522,1761657054482,-665.13,0.00022191,2]
[392555523,1761657054491,-1722.02,0.00022191,2]
[392555524,1761657054500,-500.0,0.00022191,2]
[392555525,1761657054510,-3073.45,0.00022191,2]
[392555526,1761657054519,-500.0,0.00022191,2]
[392555527,1761657054528,-661.47,0.00022191,2]
[392555528,1761657054538,-1159.98,0.00022191,2]
[392555529,1761657054548,-741.56,0.00022191,2]
[392555530,1761657054557,-605.07,0.00022191,2]
[392555531,1761657054566,-1316.14,0.00022191,2]
[392555532,1761657054575,-675.01,0.00022191,2]
[392555533,1761657054585,-500.0,0.00022191,2]
[392555534,1761657054594,-500.0,0.00022191,2]
[392555535,1761657054603,-2083.33,0.00022191,2]
[392555536,1761657054613,-6321.35,0.00022191,2]
[392555537,1761657054672,-500.0,0.00022191,2]
[392555538,1761657054681,-690.77,0.00022191,2]
[392555539,1761657054690,-510.77,0.00022191,2]
[392555540,1761657054699,-557.55,0.00022191,2]
[392555541,1761657054709,-511.28,0.00022191,2]
[392555542,1761657054717,-1578.07,0.00022191,2]
[392555543,1761657054728,-500.0,0.00022191,2]
[392555544,1761657054737,-1581.0,0.00022191,2]
[392555545,1761657054746,-500.0,0.00022191,2]
[392555546,1761657054756,-500.0,0.00022191,2]
[392555547,1761657054765,-500.0,0.00022191,2]
[392555548,1761657054775,-965.6,0.00022191,2]
[392555549,1761657054784,-513.65459039,0.00022191,2]
[392555550,1761657054794,-1097.81,0.00022191,2]
[392555551,1761657054803,-540.18,0.00022191,2]
[392555552,1761657054812,-567.02,0.00022191,2]
[392555553,1761657054822,-500.0,0.00022191,2]
[392555554,1761657054831,-500.0,0.00022191,2]
[392555555,1761657054840,-500.0,0.00022191,2]
[392555556,1761657054849,-500.0,0.00022191,2]
[392555557,1761657054857,-500.0,0.00022191,2]
[392555558,1761657054866,-511.85216628,0.00022191,2]
[392555559,1761657054876,-500.0,0.00022191,2]
[392555560,1761657054885,-842.65,0.00022191,2]
[392555561,1761657054896,-500.0,0.00022191,2]
[392555562,1761657054906,-500.0,0.00022191,2]
[392555563,1761657054915,-563.13,0.00022191,2]
[392555564,1761657054925,-964.6,0.00022191,2]
[392555565,1761657054934,-500.0,0.00022191,2]
[392555566,1761657054943,-744.61,0.00022191,2]
[392555567,1761657054953,-879.43,0.00022191,2]
[392555568,1761657054962,-500.0,0.00022191,2]
[392555569,1761657054972,-1358.64,0.00022191,2]
[392555570,1761657054981,-2220.12,0.00022191,2]
[392555571,1761657054990,-513.68,0.00022191,2]
[392555572,1761657054999,-586.19,0.00022191,2]
[392555573,1761657055009,-500.0,0.00022191,2]
[392555574,1761657055018,-559.7715905,0.00022191,2]
[392555575,1761657055027,-764.13,0.00022191,2]
[392555576,1761657055037,-500.0,0.00022191,2]
[392555577,1761657055046,-1030.09,0.00022191,2]
[392555578,1761657055056,-851.41,0.00022191,2]
[392555579,1761657055065,-500.0,0.00022191,2]
[392555580,1761657055074,-1542.61,0.00022191,2]
[392555581,1761657055083,-1850.58,0.00022191,2]
[392555582,1761657055092,-500.0,0.00022191,2]
[392555583,1761657055101,-500.0,0.00022191,2]
[392555584,1761657055111,-1102.07,0.00022191,2]
[392555585,1761657055120,-1177.28,0.00022191,2]
[392555586,1761657055129,-1804.48,0.00022191,2]
[392555587,1761657055139,-500.0,0.00022191,2]
[392555588,1761657055148,-500.0,0.00022191,2]
[392555589,1761657055157,-982.96,0.00022191,2]
[392555590,1761657055167,-500.0,0.00022191,2]
[392555591,1761657055176,-1089.89,0.00022191,2]
[392555592,1761657055185,-1582.41,0.00022191,2]
[392555593,1761657055195,-500.0,0.00022191,2]
[392555594,1761657055204,-500.0,0.00022191,2]
[392555595,1761657055213,-491.36217741,0.00022191,2]